Workbook

Sheet Cover PageFLASH DRIVE BQ CL 132
A1: PROVINCIAL ADMINISTRATION OF KWAZULU-NATAL
A2: DEPARTMENT OF PUBLIC WORKS
A10: BILLS OF QUANTITIES
A12: with GCC for Construction Works - Second Edition 2010
A14: RETURNABLE DOCUMENT
A15: FLASH DRIVE
A16: PHASE 14: STORM DAMAGED PROGRAMME: REPAIRS AND RENOVATIONS TO STORM DAMAGED SCHOOLS THROUGHOUT THE PROVINCE OF KWAZULU-NATAL: MIDLANDS REGION: CLUSTER 132: EKUTHUTHUKENI SECONDARY SCHOOL. OPEN BIDS.
A17: SCHOOL NAME | B17: WIMS NO. | C17: CONTRACT PERIOD | D17: TYPE OF CONTRACT
A18: EKUTHUTHUKENI SECONDARY SCHOOL | B18: 063805 | C18: 9 CALENDAR MONTHS | D18: OPEN TENDER
A21: Engineer/Principal Agent | C21: Principal Agent/Programme Manager
A22: VNA Consulting (Pty) Ltd | C22: VNA Consulting (Pty) Ltd
A23: P.O Box 70803 | C23: P.O Box 70803
A24: Overport | C24: Durban
A25: Durban | C25: 4067
A26: 4067
A27: 031 -700 2500 - Tel Number | C27: 031 - 700 2500 - Tel Number
A28: 031 - 940 4243 - Fax Number | C28: 031 - 940 4243 - Fax Number
A29: anisa.vaid@vnac.co.za | C29: anisa.vaid@vnac.co.za
A31: Employer: | C31: Region:
A32: Head: Public Works | C32: Head Public Works: Operations
A33: KZN Department of Public Works | C33: KZN Department of Public Works
A34: Private Bag X 9041 | C34: X9041
A35: Pietermaritzburg | C35: Pietermaritzburg
A36: 3200 | C36: 3200
A37: Tel Number: 033 - 355 5569 | C37: Tel Number: | D37: 033 - 355 5569
A38: Fax Number: N/A | C38: Fax Number: | D38: N/A
A40: Bid Number: ZNTL04780W | C40: Project Code: | D40: 063805
A41: CIDB Grading 4GB or higher | C41: Document Date: | D41: As per Tender Advert
A42: ECDP Number: N/A | C42: Contract Period: | D42: =C18 -> 9 CALENDAR MONTHS
A44: Bidding Entity:
A45: CIDB Registration number:
A46: Central Suppliers Database Registration Number:

Sheet STORM14-EKUTHUTHU
A1: ='Cover PageFLASH DRIVE BQ CL 132'!A16:D16 -> PHASE 14: STORM DAMAGED PROGRAMME: REPAIRS AND RENOVATIONS TO STORM DAMAGED SCHOOLS THROUGHOUT THE PROVINCE OF KWAZULU-NATAL: MIDLANDS REGION: CLUSTER 132: EKUTHUTHUKENI SECONDARY SCHOOL. OPEN BIDS.
A2: SCHOOL NAME | C2: WIMS NO. | D2: CONTRACT PERIOD | F2: TYPE OF CONTRACT
A3: ='Cover PageFLASH DRIVE BQ CL 132'!A18 -> EKUTHUTHUKENI SECONDARY SCHOOL | C3: ='Cover PageFLASH DRIVE BQ CL 132'!B18 -> 063805 | D3: ='Cover PageFLASH DRIVE BQ CL 132'!C18 -> 9 CALENDAR MONTHS | F3: ='Cover PageFLASH DRIVE BQ CL 132'!D18 -> OPEN TENDER
A4: ='[1]Cover PageFLASH DRIVE BQ CL 127'!A44 -> Bidding Entity: | C4: ='Cover PageFLASH DRIVE BQ CL 132'!B44 -> 0
A5: BIDDERS TO NOTE THAT ALL FIELDS HIGHLIGTHED IN YELLOW TO BE FILLED IN ONLY
A6: ITEM NO | B6: DESCRIPTION | C6: UNIT | D6: QUANTITY | E6: RATE | F6: AMOUNT
B8: BILL NO. 1 PRELIMINARIES (PROVISIONAL)
B9: BUILDING AGREEMENT AND PRELIMINARIES
B11: See C2.2 - Preliminaries for GCC for Construction works - 2nd Edition (2010)
A13: 1 | B13: Preliminaries | C13: Item | D13: 1 | F13: =D13*E13 -> 0
B15: Total for Section No. 1: Bill No. 1 | F15: =SUM(F13:F14) -> 0
B17: SECTION 2
B18: BILL NO.1 : ALTERATIONS (PROVISIONAL)
B20: (CPAP WORK GROUP 102 UNLESS OTHERWISE STATED)
B22: SUPPLEMENTARY PREAMBLES
B24: The Tenderer is referred to the relevant Clauses in the Standard Preambles to All Trades and to the Supplementary Preambles which are incorporated in these Bills of Quantities.
B26: For Preambles refer to the relevant Clauses in the ASAQS Model Preambles for Trades 2008 and Supplementary Preambles which is incorporated in these Bills of Quantities.
B28: NOTE:
B30: Rates are to include for removal of all items unless otherwise described.
B32: Block Notation
B34: Note: For the purpose of tendering only the total quantity shall be used in calculating the amount for inclusion in the tender at the tendered rates. Block A : 4 Classroom Block Block B : Admin Block Block C : 4 Classroom Block Block D : 3 Classroom Block Block E : 5 Classroom Block Block F : Admin Block
B36: View site:
B38: Before submitting his tender the contractor shall visit the site and satisfy himself as to the nature and extent of the work to be done and the value of the materials contained in the buildings or portions of the buildings to be demolished. No claim for any variations of the contract sum in respect of the nature and extent of the work or of inferior or damaged materials will be entertained.
B40: Work and materials:
B42: The work to be done and the materials to be used in the works on site are to be similar to those specified in the new work so as they apply.
B44: Old materials:
B46: Old materials specified to be handed over are to be carefully made good and stored on the site where directed.
B48: Old materials to be carted away:
B50: Old materials from alterations except where described to be re-used or handed over, as well as rubbish, etc. must be regularly carted from the site and not be allowed to accumulate on or around the site.
B52: Demolitions:
B54: The items shall be reserved and remain the property of the employer and will be removed from the building by the contractor and handed over to the employer prior to the commencement of the demolitions. Should the tenderer have doubts concerning any of these items he shall seek clarification from the Principal Agent.
B56: Leave site clean and free of rubbish:
B58: The contractor shall progressively during the works and at completion collect and cart away all materials and debris resulting from the demolitions and also all earth, soil and rubbish.
B60: General:
B62: The contractor shall carry out the whole of the works with as little mess and noise as possible and with a minimum of disturbance to adjoining premises and their tenants. He shall provide proper protection and provide, erect and remove when directed, any temporary tarpaulins that may be necessary during the progress of the works, all to the satisfaction of the principal agent.
B64: Water supply pipes and other piping that may be encountered and found necessary to disconnect or cut, shall be effectually stopped off or grubbed up and removed, and any new connections that may be necessary shall be made with proper fittings, to the satisfaction of the principal agent.
B66: Doors, fanlights, fittings, frames, linings, etc which are to be re-used shall be thoroughly overhauled before refixing including taking off, easing and rehanging, cramping up, re-wedging as required and making good cramps, dowels, etc, and easing, oiling, adjusting and repairing ironmongery as necessary, replacing any glass damaged in removal or subsequently and stopping up all nail and screw holes with tinted plastic wood to match timber, unless otherwise described. Re-painting or re-varnishing is given separately.
B68: Prices for taking out of doors, windows, etc shall include for removal of all beads, architraves, ironmongery, etc.
B70: Prices for taking out and removing doors and frames shall include for removing door stops, cabin hooks, etc and making good floor and wall finishes to match existing.
B72: With regard to building up of openings in existing walls, cement screeds and pavings, granolithic, tops of walls, etc, shall be levelled and prepared for raising of brickwork.
B74: Making good of finishes shall include making good of the brick and concrete surfaces onto which the new finishes are applied, where necessary.
B76: The contractor will be held responsible for any damage to persons and property and for the safety of the structures and he is to allow for protecting and indemnifying persons using the existing buildings from injury by virtue of the building operations, including providing necessary barriers, signs, etc.
B78: The contractor will be required to take all dimensions affecting the existing buildings on the site and he will be held solely responsible for the accuracy of all such dimensions where used in the manufacture of new items (doors, windows, fittings, etc).
B80: Rates are deemed to include cart away and/or disposal at an approved dump site.
B82: HOARDING
B84: Hoarding, Roofing protection, etc.:
A86: 1 | B86: Shade cloth hoarding 1.8m high above natural ground level, including 300mm x 300mm x 300mm deep base, including 15Mpa/19mm mass concrete bases, excavation, backfilling etc, fixed to intermediate timber posts at 3m centres. | C86: m | D86: 120 | F86: =D86*E86 -> 0
B88: REMOVAL OF EXISTING WORK
B90: Demolish existing reinforced concrete including temporary propping, etc.:
A92: 2 | B92: 2450 x 2450 x 1000mm deep water tank stand. | C92: No | D92: 4 | F92: =D92*E92 -> 0
A94: 3 | B94: 1800 x 1800 x 1000mm deep water tank stand. | C94: No | D94: 4 | F94: =D94*E94 -> 0
A96: 4 | B96: 100mm Thick unreinforced concrete to v-drains. | C96: m2 | D96: 23 | F96: =D96*E96 -> 0
B98: Taking down and removing roofs, floors, panelling, ceilings, partitions, etc.:
A100: 5 | B100: Fibre-cement ceilings including cornices, timber brandering, etc. | C100: m2 | D100: 275 | F100: =D100*E100 -> 0
A102: 6 | B102: Existing chalk boards. | C102: No | D102: =4+4+3 -> 11 | F102: =D102*E102 -> 0
A104: 7 | B104: Fibre cement fascia boards including all fittings. | C104: m | D104: =58+32+63 -> 153 | F104: =D104*E104 -> 0
A106: 8 | B106: Fibre cement barge boards including all fittings. | C106: m | D106: =19+20+23+19 -> 81 | F106: =D106*E106 -> 0
A108: 9 | B108: Gutters including fittings. | C108: m | D108: =153+88 -> 241 | F108: =D108*E108 -> 0
A110: 10 | B110: Downpipes including fittings. | C110: m | D110: =20+12+60 -> 92 | F110: =D110*E110 -> 0
A112: 11 | B112: Water storage tank including all fittings. | C112: No | D112: 10 | F112: =D112*E112 -> 0
B114: Taking out and removing door from existing frame:
A116: 12 | B116: Timber single door. | C116: No | D116: 11 | F116: =D116*E116 -> 0
A118: 13 | B118: GMS gates: | C118: No | D118: 16 | F118: =D118*E118 -> 0
B120: Taking out/off and removing glass and mirrors:
A122: 14 | B122: Glass from steel windows, including cleaning out rebates and preparing for new glass (new glass elsewhere measured). | C122: m2 | D122: 30 | F122: =D122*E122 -> 0
B124: Take out and remove existing glazed steel window frame etc.:
A126: 15 | B126: Glazed steel window frame size 900 x 1000mm high from one brick wall. | C126: No | D126: 1 | F126: =D126*E126 -> 0
B128: Structural Repairs:
B130: Brick/Block stitching.
A132: 16 | B132: Hack off existing plaster, a minimum of 400mm of both sides of the crack. Cut into existing mortar lines, 400mm on both sides of the crack. Place one Y8MM diameter bar, 800mm long, centred on the crack and caulk in with fresh mortar in every course to the full extent of the crack. Finish off by plastering and painting. | C132: m | D132: 35 | F132: =D132*E132 -> 0
B134: Hacking up/off and removing granolithic, screeds, plaster etc. from concrete or brickwork and preparing surfaces for new screeds, plaster, etc.
A136: 17 | B136: Plaster from walls in patches. | C136: m2 | D136: =(29.02*2.8)*20%+30+40+120 -> 206 | F136: =D136*E136 -> 0
A138: 18 | B138: Average 25mm screed from floors in patches. | C138: m2 | D138: 200 | F138: =D138*E138 -> 0
B140: TEMPORARY PARKHOMES
B142: Note: Rates for park homes to include standard windows, burglar bars, curtains and tracks, two tier steps for access, lighting fittings and black boards size: 1200 x 4800mm.
B144: M-Projects or other approved temporary park home units:
B146: Provide standard classroom size minimum 7 x 7m or nearest size temporary park homes on site for temporary educational facilities during the construction phase as herewith measured for 9 months, including levelling, two tier steps, positioning on site and connections to an electrical supply. NOTE: The tenderer rate should be the rental rate for 1 park home for a 9 month period (i.e: Rental rate per park home x 9). | C146: No | D146: 6 | F146: =D146*E146 -> 0
A148: 19 | B148: Provision of electrical compliance certificates for park homes. | C148: No | D148: 6 | F148: =D148*E148 -> 0
A150: 20 | B150: Transport to and from site of park homes as per distance between supplier and site. | C150: No | D150: 6 | F150: =D150*E150 -> 0
B152: Desludging septic tank by a specialist including disposal:
A154: 21 | B154: Septic tank. | C154: m3 | D154: 40 | F154: =D154*E154 -> 0
B156: Total for Section No. 2: Bill No. 1 | F156: =SUM(F86:F154) -> 0
B159: BILL NO. 2 : EARTHWORKS (PROVISIONAL)
B161: (CPAP WORK GROUP 104 UNLESS OTHERWISE STATED).
B163: For Preambles refer to the relevant Clauses in the ASAQS Model Preambles for Trades 2008 and Supplementary Preambles which is incorporated in these Bills of Quantities.
B165: The Tenderer is referred to the relevant Clauses in the Standard Preambles to All Trades and to the Supplementary Preambles which are incorporated in these Bills of Quantities.
B167: SUPPLEMENTARY PREAMBLES
B169: Nature of ground:
B171: The nature of the ground is assumed to be loose sandy material, therefore earth, but possibly interspersed with hard rock or soft rock.
B173: Carting away of excavated material:
B175: Descriptions of carting away of excavated material shall be deemed to include loading excavated material onto trucks directly from the excavations or, alternatively, from stock piles situated on the building site.
B177: Block Notation
B179: Note: For the purpose of tendering only the total quantity shall be used in calculating the amount for inclusion in the tender at the tendered rates. Block A : 4 Classroom Block Block B : Admin Block Block C : 4 Classroom Block Block D : 3 Classroom Block Block E : 5 Classroom Block Block F : Admin Block
B181: EXCAVATION AND FILLING OTHER THAN BULK
B183: Excavation in earth not exceeding 2m deep:
A185: 1 | B185: Trenches. - ramps | C185: m3 | D185: 62 | F185: =D185*E185 -> 0
B187: Back excavation of vertical sides of excavation in earth for working space including backfilling compacted to 95% Mod AASHTO density:
A189: 2 | B189: Not exceeding 0,5m deep. | C189: m2 | D189: 111 | F189: =D189*E189 -> 0
B191: Extra over excavations other than bulk in earth for excavation in:
A193: 3 | B193: Soft rock. | C193: m3 | D193: 1 | F193: =D193*E193 -> 0
A195: 4 | B195: Hard rock. | C195: m3 | D195: 1 | F195: =D195*E195 -> 0
B197: Risk of collapse of excavations other than bulk:
A199: 5 | B199: Sides of trench and hole excavations not exceeding 1,5m deep. | C199: m2 | D199: 111 | F199: =D199*E199 -> 0
B201: KEEPING EXCAVATIONS FREE OF WATER
B203: Keeping excavations free of water:
A205: 6 | B205: Keeping excavations free of all water other than subterranean water. | C205: Item | D205: 1 | F205: =D205*E205 -> 0
B207: CARTING AWAY
B209: Extra over all excavations for loading, carting and dumping surplus excavated material (no allowance made for increase in bulk):
A211: 7 | B211: Surplus material from excavations and/or stock piles on site to a dumping site to be located by the contractor or as directed by the engineer. | C211: m3 | D211: 3.45 | F211: =D211*E211 -> 0
B213: EARTH FILLING, ETC
B215: Earth filling using excavated material
A217: 8 | B217: Under surface beds, etc. | C217: m3 | D217: 30 | F217: =D217*E217 -> 0
B219: Earth filling of G7 quality material supplied by the Contractor compacted to 95% Mod AASHTO density:
A221: 9 | B221: Under surface beds, etc. | C221: m3 | D221: 17.2 | F221: =D221*E221 -> 0
B223: Compaction of surfaces:
A225: 10 | B225: Compaction of ground surface under floors, etc. including scarifying for a depth of 150mm, breaking down oversize material, adding suitable material where necessary and compacting to 93% Mod AASHTO density. | C225: m2 | D225: 171 | F225: =D225*E225 -> 0
B227: TESTS
B229: Prescribed density tests on filling:
A231: 11 | B231: Modified AASHTO Density test. | C231: No | D231: 5 | F231: =D231*E231 -> 0
B233: SOIL POISONING
B235: Approved brand of anti-termite soil poison applied by a Registered Pest Control company and guaranteed against termite infestation for ten years:
A237: 12 | B237: Under floors, etc., including forming and poisoning shallow furrows against foundation walls, etc., filling in furrows and ramming. | C237: m2 | D237: 111 | F237: =D237*E237 -> 0
A239: 13 | B239: To bottom and sides of trenches. | C239: m2 | D239: 60 | F239: =D239*E239 -> 0
B241: Total for Section No. 2: Bill No. 2 | F241: =SUM(F185:F239) -> 0
B243: BILL NO.3 : MASONRY (PROVISIONAL)
B245: (CPAP WORK GROUP 118 UNLESS OTHERWISE STATED)
B247: SUPPLEMENTARY PREAMBLES
B249: The Tenderer is referred to the relevant Clauses in the Standard Preambles to All Trades and to the Supplementary Preambles which are incorporated in these Bills of Quantities.
B251: For Preambles refer to the relevant Clauses in the ASAQS Model Preambles for Trades 2008 and Supplementary Preambles which is incorporated in these Bills of Quantities.
B253: Block Notation
B255: Note: For the purpose of tendering only the total quantity shall be used in calculating the amount for inclusion in the tender at the tendered rates. Block A : 4 Classroom Block Block B : Admin Block Block C : 4 Classroom Block Block D : 3 Classroom Block Block E : 5 Classroom Block Block F : Admin Block
B257: BRICKWORK
B259: Sizes in descriptions:
B261: Where sizes in descriptions are given in brick units, 'one brick' shall represent the length and 'half brick' the width of a brick.
B263: Bagging and sealing:
B265: Walls in two skins described as 'bagged and sealed' shall be deemed to include having the outer face of the inner skin bagged with 1:6 cement and sand mixture and sealed with two coats of bitumen emulsion waterproofing coating.
B267: Face bricks:
B269: Bricks shall be ordered timeously to obtain uniformity in size and colour.
B271: Pointing:
B273: Descriptions of recessed pointing to fair face brickwork and face brickwork shall be deemed to include square recessed, hollow recessed, weathered pointing, etc.
B275: BRICKWORK IN FOUNDATIONS
B277: Brickwork of NFX bricks (14 MPa nominal compressive strength) in class II mortar:
A279: 1 | B279: Half brick walls | C279: m2 | D279: 58 | F279: =D279*E279 -> 0
B281: BRICKWORK IN SUPERSTRUCTURE
B283: Brickwork of NFP bricks (7 Mpa nominal compressive strength) in Class II mortar:
A285: 2 | B285: Half brick walls forming bump rail | C285: m2 | D285: 13 | F285: =D285*E285 -> 0
B287: FACEBRICK
B289: Corobrik® (Lawley-Gauteng) 20-30 MPa Montana Traventine FSB clay facebrick, bedded and jointed in Class II mortar and pointed with flush vertical and flush horizontal joints and perpends, suitable for exposure zones 1-2:
A291: 3 | B291: Half brick walls forming bump rail | C291: m2 | D291: 13 | F291: =D291*E291 -> 0
B293: BRICKWORK SUNDRIES
B295: Brickwork reinforcement:
A297: 4 | B297: 75mm Wide reinforcement built in horizontally. | C297: m | D297: =D291*4 -> 52 | F297: =D297*E297 -> 0
B299: Total for Section 2: Bill No. 3 | F299: =SUM(F279:F298) -> 0
B301: BILL NO.4 : CONCRETE, FORMWORK AND REINFORCEMENT (PROVISIONAL)
B303: (CPAP WORK GROUP 110, 111 & 114 UNLESS OTHERWISE STATED)
B305: SUPPLEMENTARY PREAMBLES
B307: The Tenderer is referred to the relevant Clauses in the Standard Preambles to All Trades and to the Supplementary Preambles which are incorporated in these Bills of Quantities.
B309: For Preambles refer to the relevant Clauses in the ASAQS Model Preambles for Trades 2008 and Supplementary Preambles which is incorporated in these Bills of Quantities.
B311: Cost of tests:
B313: The costs of making, storing and testing of concrete test cubes as required under clause 7 'Tests' of SABS 1200 G shall include the cost of providing cube moulds necessary for the purpose, for testing costs and for submitting reports.
B315: Formwork:
B317: Descriptions of formwork shall be deemed to include use and waste only (except where described as left in or permanent), for fitting together in the required forms, wedging, plumbing and fixing to true angles and surfaces as necessary to ensure easy release.
B319: The vertical strutting shall be carried down to such construction as is sufficiently strong to afford the required support without damage and shall remain in position until the newly constructed work is able to support itself.
B321: Formwork to soffits of solid slabs etc., shall be deemed to be to slabs not exceeding 250mm thick unless otherwise described.
B323: Block Notation
B325: Note: For the purpose of tendering only the total quantity shall be used in calculating the amount for inclusion in the tender at the tendered rates. Block A : 4 Classroom Block Block B : Admin Block Block C : 4 Classroom Block Block D : 3 Classroom Block Block E : 5 Classroom Block Block F : Admin Block
B327: UNREINFORCED CONCRETE CAST ON/IN FORMWORK
B329: 20MPa/19mm mass concrete:
A331: 1 | B331: Strip footings | C331: m3 | D331: 18 | F331: =D331*E331 -> 0
B333: REINFORCED CONCRETE
B335: 30MPa/19mm Reinforced concrete cast in/on formwork (Provisional):
A337: 2 | B337: Ramp and landing | C337: m3 | D337: 10 | F337: =D337*E337 -> 0
B339: TEST BLOCKS
A341: 3 | B341: Allow for all necessary concrete test cubes size 150 x 150 x 150mm cast from batches of concrete required for the entire contract as specified, made, stored, cured and tested in accordance with SABS Methods 861 and 863, including use of approved cube mould. | C341: Sets | D341: 10 | F341: =D341*E341 -> 0
B343: FORMWORK
B345: ROUGH FORMWORK (DEGREE OF ACCURACY II) (CPAP WORK GROUP NO. 111)
B347: Rough Formwork to Sides of:
A349: 4 | B349: Edges, risers, ends and reveals not exceeding 300mm high or wide. | C349: m2 | D349: 78 | F349: =D349*E349 -> 0
B351: CONCRETE SUNDRIES
B353: Finishing top surfaces of concrete smooth with a wood float:
A355: 5 | B355: Surface beds, slabs, etc. | C355: m2 | D355: 12 | F355: =D355*E355 -> 0
B357: MOVEMENT JOINTS, ETC.
B359: Movement joints between vertical concrete and brick surfaces:
A361: 6 | B361: 10mm softboard isolation joints not exceeding 300mm wide. | C361: m | D361: 46 | F361: =D361*E361 -> 0
B363: REINFORCEMENT (CPAP WORK GROUP NO. 114)
B365: Fabric reinforcement:
A367: 7 | B367: Type 193 fabric reinforcement in concrete surface beds, slabs, etc. | C367: m2 | D367: 12 | F367: =D367*E367 -> 0
B369: Total for Section 2: Bill No. 4 | F369: =SUM(F331:F368) -> 0
B371: BILL NO.5 : ROOF COVERINGS (PROVISIONAL)
B373: (CPAP WORK GROUP 125 UNLESS OTHERWISE STATED)
B375: SUPPLEMENTARY PREAMBLES
B377: The Tenderer is referred to the relevant Clauses in the Standard Preambles to All Trades and to the Supplementary Preambles which are incorporated in these Bills of Quantities.
B379: For Preambles refer to the relevant Clauses in the ASAQS Model Preambles for Trades 2008 and Supplementary Preambles which is incorporated in these Bills of Quantities.
B381: Block Notation.
B383: Note: For the purpose of tendering only the total quantity shall be used in calculating the amount for inclusion in the tender at the tendered rates. Block A : 4 Classroom Block Block B : Admin Block Block C : 4 Classroom Block Block D : 3 Classroom Block Block E : 5 Classroom Block Block F : Admin Block
B385: CORRUGATED METAL SHEETING AND ACCESSORIES
B387: Fixing of all roof sheeting is to be in accordance with the Manufacturer's approved Instruction Book. The Manufacturer shall comply with ISO9002 Quality Management System.
B389: 0.53mm Thick Aluminium-Zinc Corrugated (AZ150) profile 'colourplus' roof sheeting or other approved finish to both sides, or similar approved. Thickness of sheeting to be confirmed on site where matching existing. (Colour on top: to be confirmed and factory standard grey to underside). Sheets to be fixed to every purlin using appropriate roof screws including 26mm galvanised/rubber washers. At the ridge, and eave purlins, fixing to be at every crown. Purlins spaced as per manufacturer's specifications, on engineered timber trusses (or existing). Holes in sheets to be drilled, not punched. Sheets are to be fixed to 76 x 50mm purlins spaced at max 1100mm (to manufacturer's specification as per sheeting requirements) on engineered timber trusses (trusses and purlins to be replaced where specified and sizes may vary).
A391: 1 | B391: Standard galvanised ridge capping (500mm girth) screwed through sheeting to purlins. | C391: m | D391: 44 | F391: =D391*E391 -> 0
B393: Roof Screws
... 406 more rows
